[Event "Titled Tuesday Blitz November 15 Early 2022"]
[White "Cruz, Jonathan"]
[Black "Wirig, Anthony"]
[WhiteFideId "3802124"]
[BlackFideId "615013"]
[WhiteElo "2406"]
[BlackElo "2487"]
[Result "0-1"]
[Round "06"]
[TimeControl "180+1"]
[Date "2022.11.16"]
[WhiteClock "0:00:05"]
[BlackClock "0:00:05"]

1. e4 {[%clk 0:02:51]}  c5 {[%clk 0:02:59]} 2. Nf3 {[%clk 0:02:51]}  e6 {[%clk 0:02:59]} 3. c3 {[%clk 0:02:44]}  Nf6 {[%clk 0:02:59]} 4. e5 {[%clk 0:02:45]}  Nd5 {[%clk 0:02:59]} 5. g3 {[%clk 0:02:45]}  Nc6 {[%clk 0:02:49]} 6. Bg2 {[%clk 0:02:45]}  d6 {[%clk 0:02:47]} 7. exd6 {[%clk 0:02:45]}  Bxd6 {[%clk 0:02:46]} 8. O-O {[%clk 0:02:46]}  O-O {[%clk 0:02:46]} 9. d4 {[%clk 0:02:46]}  cxd4 {[%clk 0:02:44]} 10. Nxd4 {[%clk 0:02:47]}  Nxd4 {[%clk 0:02:44]} 11. Qxd4 {[%clk 0:02:47]}  Qb6 {[%clk 0:02:06]} 12. Qa4 {[%clk 0:02:33]}  Rd8 {[%clk 0:01:53]} 13. Nd2 {[%clk 0:02:30]}  Bd7 {[%clk 0:01:52]} 14. Qh4 {[%clk 0:02:10]}  Be7 {[%clk 0:01:50]} 15. Qg4 {[%clk 0:01:57]}  Nf6 {[%clk 0:01:46]} 16. Qh4 {[%clk 0:01:55]}  Bc6 {[%clk 0:01:31]} 17. Nc4 {[%clk 0:01:38]}  Qa6 {[%clk 0:01:24]} 18. Bxc6 {[%clk 0:01:28]}  Qxc6 {[%clk 0:01:23]} 19. Na5 {[%clk 0:00:53]}  Qb5 {[%clk 0:01:04]} 20. Nb3 {[%clk 0:00:50]}  Rac8 {[%clk 0:00:50]} 21. Be3 {[%clk 0:00:48]}  Rc4 {[%clk 0:00:34]} 22. Qh3 {[%clk 0:00:43]}  a5 {[%clk 0:00:29]} 23. Rab1 {[%clk 0:00:41]}  a4 {[%clk 0:00:28]} 24. Nd4 {[%clk 0:00:41]}  Qd5 {[%clk 0:00:27]} 25. Rbd1 {[%clk 0:00:37]}  Qa5 {[%clk 0:00:20]} 26. Rfe1 {[%clk 0:00:33]}  a3 {[%clk 0:00:20]} 27. Qf1 {[%clk 0:00:13]}  Rcc8 {[%clk 0:00:17]} 28. b4 {[%clk 0:00:08]}  Qh5 {[%clk 0:00:17]} 29. Qe2 {[%clk 0:00:06]}  Qh3 {[%clk 0:00:16]} 30. Qf1 {[%clk 0:00:04]}  Qxf1+ {[%clk 0:00:15]} 31. Kxf1 {[%clk 0:00:04]}  Rxc3 {[%clk 0:00:15]} 32. Nb5 {[%clk 0:00:05]}  Rc2 {[%clk 0:00:12]} 33. Nxa3 {[%clk 0:00:04]}  Rxa2 {[%clk 0:00:11]} 34. Nc4 {[%clk 0:00:04]}  Re8 {[%clk 0:00:09]} 35. Na5 {[%clk 0:00:04]}  Bxb4 {[%clk 0:00:08]} 36. Ra1 {[%clk 0:00:02]}  Rxa5 {[%clk 0:00:07]} 37. Reb1 {[%clk 0:00:02]}  Rxa1 {[%clk 0:00:05]} 38. Rxa1 {[%clk 0:00:03]}  Bf8 {[%clk 0:00:05]} 39. Rb1 {[%clk 0:00:03]}  Rc8 {[%clk 0:00:05]} 40. Bb6 {[%clk 0:00:04]}  Nd5 {[%clk 0:00:05]} 41. Bd4 {[%clk 0:00:05]}  Rb8 {[%clk 0:00:06]} 42. Be5 {[%clk 0:00:05]}  Rc8 {[%clk 0:00:06]} 43. Rxb7 {[%clk 0:00:04]}  f6 {[%clk 0:00:07]} 44. Bd4 {[%clk 0:00:05]}  Rc7 {[%clk 0:00:07]} 45. Rb8 {[%clk 0:00:05]}  Kf7 {[%clk 0:00:08]} 46. Bb2 {[%clk 0:00:05]}  Bc5 {[%clk 0:00:08]} 47. Kg2 {[%clk 0:00:06]}  Ba7 {[%clk 0:00:08]} 48. Rb5 {[%clk 0:00:06]}  Bc5 {[%clk 0:00:08]} 49. Rb8 {[%clk 0:00:05]}  Be7 {[%clk 0:00:08]} 50. Rb5 {[%clk 0:00:06]}  h5 {[%clk 0:00:09]} 51. Rb8 {[%clk 0:00:06]}  Rc2 {[%clk 0:00:09]} 52. Bd4 {[%clk 0:00:05]}  Kg6 {[%clk 0:00:08]} 53. h4 {[%clk 0:00:03]}  e5 {[%clk 0:00:08]} 54. Ba7 {[%clk 0:00:02]}  Nb4 {[%clk 0:00:06]} 55. Rb7 {[%clk 0:00:02]}  Bd6 {[%clk 0:00:06]} 56. Rb6 {[%clk 0:00:02]}  Bc5 {[%clk 0:00:06]} 57. Rb5 {[%clk 0:00:02]}  Bxa7 {[%clk 0:00:06]} 58. Rxb4 {[%clk 0:00:03]}  Bxf2 {[%clk 0:00:06]} 59. Kh3 {[%clk 0:00:04]}  Bg1 {[%clk 0:00:06]} 60. Rb3 {[%clk 0:00:05]}  Rh2# {[%clk 0:00:05]} 0-1


[Site "https://www.chess.com"]

[Event "Titled Tuesday Blitz November 15 Early 2022"]
[White "Deac, Bogdan-Daniel"]
[Black "Harsha Bharathakoti"]
[WhiteFideId "1226380"]
[BlackFideId "5078776"]
[WhiteElo "2648"]
[BlackElo "2523"]
[Result "1-0"]
[Round "06"]
[TimeControl "180+1"]
[Date "2022.11.15"]
[WhiteClock "0:00:04"]
[BlackClock "0:00:03"]

1. Nf3 {[%clk 0:03:00]}  Nf6 {[%clk 0:03:00]} 2. g3 {[%clk 0:03:00]}  g6 {[%clk 0:03:00]} 3. b3 {[%clk 0:03:00]}  Bg7 {[%clk 0:03:01]} 4. Bb2 {[%clk 0:03:00]}  O-O {[%clk 0:02:59]} 5. Bg2 {[%clk 0:03:01]}  c5 {[%clk 0:02:59]} 6. c4 {[%clk 0:03:01]}  d6 {[%clk 0:02:55]} 7. d4 {[%clk 0:03:00]}  d5 {[%clk 0:02:46]} 8. cxd5 {[%clk 0:02:37]}  Nxd5 {[%clk 0:02:45]} 9. O-O {[%clk 0:02:37]}  Nc6 {[%clk 0:02:45]} 10. Qd2 {[%clk 0:02:22]}  cxd4 {[%clk 0:02:36]} 11. Nxd4 {[%clk 0:02:20]}  Nxd4 {[%clk 0:01:40]} 12. Bxd4 {[%clk 0:02:19]}  Be6 {[%clk 0:01:09]} 13. Bxg7 {[%clk 0:02:10]}  Kxg7 {[%clk 0:01:10]} 14. Rd1 {[%clk 0:02:08]}  Nf6 {[%clk 0:01:02]} 15. Bxb7 {[%clk 0:02:00]}  Qxd2 {[%clk 0:00:55]} 16. Nxd2 {[%clk 0:01:56]}  Rab8 {[%clk 0:00:56]} 17. Bf3 {[%clk 0:01:50]}  a5 {[%clk 0:00:56]} 18. Rdc1 {[%clk 0:01:42]}  Rfd8 {[%clk 0:00:48]} 19. Nc4 {[%clk 0:01:02]}  a4 {[%clk 0:00:47]} 20. bxa4 {[%clk 0:01:01]}  Rb4 {[%clk 0:00:48]} 21. Ne5 {[%clk 0:01:01]}  Rxa4 {[%clk 0:00:47]} 22. Nc6 {[%clk 0:01:01]}  Rd2 {[%clk 0:00:32]} 23. Nxe7 {[%clk 0:00:48]}  Raxa2 {[%clk 0:00:32]} 24. Rxa2 {[%clk 0:00:48]}  Rxa2 {[%clk 0:00:32]} 25. Nc6 {[%clk 0:00:47]}  Ra4 {[%clk 0:00:30]} 26. e3 {[%clk 0:00:38]}  h5 {[%clk 0:00:29]} 27. Nd4 {[%clk 0:00:36]}  Bg4 {[%clk 0:00:27]} 28. Bg2 {[%clk 0:00:36]}  Ra2 {[%clk 0:00:24]} 29. h3 {[%clk 0:00:31]}  Bd7 {[%clk 0:00:24]} 30. Rc2 {[%clk 0:00:31]}  Rxc2 {[%clk 0:00:20]} 31. Nxc2 {[%clk 0:00:31]}  Kf8 {[%clk 0:00:20]} 32. e4 {[%clk 0:00:19]}  Bc6 {[%clk 0:00:13]} 33. e5 {[%clk 0:00:11]}  Bxg2 {[%clk 0:00:14]} 34. Kxg2 {[%clk 0:00:11]}  Nd7 {[%clk 0:00:14]} 35. f4 {[%clk 0:00:12]}  f6 {[%clk 0:00:13]} 36. exf6 {[%clk 0:00:10]}  Nxf6 {[%clk 0:00:14]} 37. Kf3 {[%clk 0:00:10]}  Kf7 {[%clk 0:00:14]} 38. Nd4 {[%clk 0:00:11]}  Nd5 {[%clk 0:00:14]} 39. Nc6 {[%clk 0:00:09]}  Kf6 {[%clk 0:00:14]} 40. Ne5 {[%clk 0:00:05]}  Ne7 {[%clk 0:00:09]} 41. Nc4 {[%clk 0:00:03]}  Nf5 {[%clk 0:00:08]} 42. Ne3 {[%clk 0:00:04]}  Ne7 {[%clk 0:00:07]} 43. g4 {[%clk 0:00:04]}  hxg4+ {[%clk 0:00:08]} 44. hxg4 {[%clk 0:00:05]}  Ke6 {[%clk 0:00:07]} 45. Ke4 {[%clk 0:00:05]}  Nc6 {[%clk 0:00:08]} 46. Nd5 {[%clk 0:00:05]}  Nd8 {[%clk 0:00:05]} 47. Nb4 {[%clk 0:00:05]}  Nb7 {[%clk 0:00:05]} 48. Nd3 {[%clk 0:00:05]}  Nd6+ {[%clk 0:00:05]} 49. Kd4 {[%clk 0:00:05]}  Nb5+ {[%clk 0:00:06]} 50. Ke3 {[%clk 0:00:05]}  Nd6 {[%clk 0:00:05]} 51. Kd4 {[%clk 0:00:05]}  Nb5+ {[%clk 0:00:03]} 52. Kc4 {[%clk 0:00:06]}  Nd6+ {[%clk 0:00:03]} 53. Kc5 {[%clk 0:00:04]}  Ne4+ {[%clk 0:00:04]} 54. Kd4 {[%clk 0:00:04]}  Nf6 {[%clk 0:00:04]} 55. Nc5+ {[%clk 0:00:03]}  Kf7 {[%clk 0:00:04]} 56. g5 {[%clk 0:00:03]}  Nh5 {[%clk 0:00:03]} 57. Ke5 {[%clk 0:00:04]}  Ng3 {[%clk 0:00:03]} 58. Ne4 {[%clk 0:00:04]}  Nf5 {[%clk 0:00:03]} 59. Nd6+ {[%clk 0:00:04]} 1-0


[Site "https://www.chess.com"]

[Event "Titled Tuesday Blitz November 15 Early 2022"]
[White "Demchenko, Anton"]
[Black "parintele_chess"]
[WhiteFideId "4160258"]
[WhiteElo "2545"]
[BlackElo "2211"]
[Result "1-0"]
[Round "06"]
[TimeControl "180+1"]
[Date "2022.11.16"]
[WhiteClock "0:02:34"]
[BlackClock "0:01:05"]

1. e4 {[%clk 0:03:00]}  e5 {[%clk 0:02:59]} 2. Nf3 {[%clk 0:03:01]}  Nc6 {[%clk 0:02:59]} 3. Bc4 {[%clk 0:03:02]}  Nf6 {[%clk 0:02:59]} 4. d3 {[%clk 0:03:02]}  Bc5 {[%clk 0:02:58]} 5. Be3 {[%clk 0:03:03]}  Bxe3 {[%clk 0:02:53]} 6. fxe3 {[%clk 0:03:03]}  O-O {[%clk 0:02:51]} 7. Nbd2 {[%clk 0:03:02]}  d5 {[%clk 0:02:48]} 8. exd5 {[%clk 0:03:02]}  Nxd5 {[%clk 0:02:49]} 9. Qe2 {[%clk 0:03:02]}  Nb6 {[%clk 0:02:36]} 10. Bb3 {[%clk 0:03:02]}  a5 {[%clk 0:02:36]} 11. a3 {[%clk 0:03:01]}  a4 {[%clk 0:02:36]} 12. Ba2 {[%clk 0:03:02]}  Qe7 {[%clk 0:02:33]} 13. O-O {[%clk 0:02:59]}  Be6 {[%clk 0:02:32]} 14. Bxe6 {[%clk 0:03:00]}  Qxe6 {[%clk 0:02:33]} 15. Rf2 {[%clk 0:02:56]}  h6 {[%clk 0:02:32]} 16. Raf1 {[%clk 0:02:46]}  Qa2 {[%clk 0:02:28]} 17. Nh4 {[%clk 0:02:46]}  Qxb2 {[%clk 0:02:25]} 18. Nf5 {[%clk 0:02:44]}  Qxc2 {[%clk 0:01:52]} 19. Nxh6+ {[%clk 0:02:33]}  gxh6 {[%clk 0:01:41]} 20. Qg4+ {[%clk 0:02:34]}  Kh8 {[%clk 0:01:37]} 21. Rf6 {[%clk 0:02:34]}  Qxd3 {[%clk 0:01:08]} 22. Rxh6+ {[%clk 0:02:33]}  Qh7 {[%clk 0:01:08]} 23. Qh5 {[%clk 0:02:32]}  Qxh6 {[%clk 0:01:05]} 24. Qxh6+ {[%clk 0:02:33]}  Kg8 {[%clk 0:01:06]} 25. Qg5+ {[%clk 0:02:33]}  Kh7 {[%clk 0:01:05]} 26. Rf3 {[%clk 0:02:34]} 1-0


[Site "https://www.chess.com"]

[Event "Titled Tuesday Blitz November 15 Early 2022"]
[White "Demin, Vladimir"]
[Black "Zemlyanskii, Ivan"]
[WhiteFideId "4167457"]
[BlackFideId "24249971"]
[WhiteElo "2573"]
[BlackElo "2107"]
[Result "0-1"]
[Round "06"]
[TimeControl "180+1"]
[Date "2022.11.16"]
[WhiteClock "0:00:03"]
[BlackClock "0:00:41"]

1. d4 {[%clk 0:03:00]}  d5 {[%clk 0:02:59]} 2. Nc3 {[%clk 0:03:00]}  e6 {[%clk 0:03:00]} 3. e4 {[%clk 0:03:00]}  Nf6 {[%clk 0:02:46]} 4. Bg5 {[%clk 0:02:59]}  Be7 {[%clk 0:02:45]} 5. Bxf6 {[%clk 0:02:57]}  Bxf6 {[%clk 0:02:43]} 6. Nf3 {[%clk 0:02:57]}  O-O {[%clk 0:02:40]} 7. Qd3 {[%clk 0:02:55]}  b6 {[%clk 0:02:35]} 8. O-O-O {[%clk 0:02:53]}  Bb7 {[%clk 0:02:30]} 9. e5 {[%clk 0:02:52]}  Be7 {[%clk 0:02:30]} 10. h4 {[%clk 0:02:53]}  c5 {[%clk 0:02:20]} 11. Kb1 {[%clk 0:02:51]}  Nc6 {[%clk 0:02:00]} 12. Ng5 {[%clk 0:02:44]}  g6 {[%clk 0:02:00]} 13. Nf3 {[%clk 0:02:32]}  cxd4 {[%clk 0:01:56]} 14. Nxd4 {[%clk 0:02:30]}  Nxe5 {[%clk 0:01:54]} 15. Qg3 {[%clk 0:02:29]}  Bf6 {[%clk 0:01:50]} 16. h5 {[%clk 0:02:28]}  Bg7 {[%clk 0:01:40]} 17. hxg6 {[%clk 0:02:20]}  hxg6 {[%clk 0:01:41]} 18. Bb5 {[%clk 0:02:04]}  Qf6 {[%clk 0:01:34]} 19. f4 {[%clk 0:01:17]}  Nc4 {[%clk 0:01:31]} 20. Nf3 {[%clk 0:00:49]}  Nxb2 {[%clk 0:01:21]} 21. Qh3 {[%clk 0:00:41]}  Rfd8 {[%clk 0:01:10]} 22. Rd4 {[%clk 0:00:07]}  Nc4 {[%clk 0:01:01]} 23. Qh7+ {[%clk 0:00:07]}  Kf8 {[%clk 0:01:01]} 24. Bxc4 {[%clk 0:00:06]}  dxc4 {[%clk 0:00:59]} 25. Rxd8+ {[%clk 0:00:04]}  Rxd8 {[%clk 0:01:00]} 26. Ne5 {[%clk 0:00:04]}  Qxf4 {[%clk 0:00:48]} 27. Nxg6+ {[%clk 0:00:03]}  fxg6 {[%clk 0:00:47]} 28. g3 {[%clk 0:00:03]}  Qf6 {[%clk 0:00:41]} 0-1


[Site "https://www.chess.com"]

[Event "Titled Tuesday Blitz November 15 Early 2022"]
[White "Devaev, Alexander"]
[Black "Marchesich, Giovanni"]
[WhiteFideId "4169395"]
[BlackFideId "2824790"]
[WhiteElo "2225"]
[BlackElo "2200"]
[Result "1-0"]
[Round "06"]
[TimeControl "180+1"]
[Date "2022.11.16"]
[WhiteClock "0:00:07"]
[BlackClock "0:00:09"]

1. d4 {[%clk 0:03:00]}  d6 {[%clk 0:02:59]} 2. c4 {[%clk 0:03:00]}  Nf6 {[%clk 0:02:58]} 3. Nc3 {[%clk 0:03:00]}  Nbd7 {[%clk 0:02:57]} 4. e4 {[%clk 0:03:00]}  e5 {[%clk 0:02:56]} 5. d5 {[%clk 0:03:00]}  Be7 {[%clk 0:02:55]} 6. Nf3 {[%clk 0:03:00]}  O-O {[%clk 0:02:55]} 7. h3 {[%clk 0:03:01]}  a5 {[%clk 0:02:54]} 8. Be3 {[%clk 0:03:00]}  b6 {[%clk 0:02:54]} 9. Be2 {[%clk 0:03:00]}  Nc5 {[%clk 0:02:54]} 10. Qc2 {[%clk 0:03:00]}  Ne8 {[%clk 0:02:51]} 11. g4 {[%clk 0:02:43]}  g6 {[%clk 0:02:50]} 12. Rg1 {[%clk 0:02:41]}  Ng7 {[%clk 0:02:50]} 13. Bh6 {[%clk 0:02:37]}  Kh8 {[%clk 0:02:46]} 14. O-O-O {[%clk 0:02:34]}  a4 {[%clk 0:02:39]} 15. Kb1 {[%clk 0:02:32]}  Ba6 {[%clk 0:02:33]} 16. Qd2 {[%clk 0:02:14]}  Rg8 {[%clk 0:02:23]} 17. Ng5 {[%clk 0:02:02]}  Bxg5 {[%clk 0:02:21]} 18. Bxg5 {[%clk 0:02:02]}  f6 {[%clk 0:02:21]} 19. Be3 {[%clk 0:02:02]}  Qd7 {[%clk 0:02:13]} 20. h4 {[%clk 0:01:58]}  f5 {[%clk 0:02:10]} 21. gxf5 {[%clk 0:01:49]}  gxf5 {[%clk 0:02:10]} 22. Qc2 {[%clk 0:01:09]}  f4 {[%clk 0:02:07]} 23. Bxc5 {[%clk 0:01:09]}  bxc5 {[%clk 0:02:08]} 24. Nxa4 {[%clk 0:00:50]}  Bxc4 {[%clk 0:02:08]} 25. Bxc4 {[%clk 0:00:50]}  Rxa4 {[%clk 0:02:06]} 26. b3 {[%clk 0:00:41]}  Ra3 {[%clk 0:02:01]} 27. Rd2 {[%clk 0:00:34]}  Nh5 {[%clk 0:01:53]} 28. Rxg8+ {[%clk 0:00:33]}  Kxg8 {[%clk 0:01:54]} 29. Qd1 {[%clk 0:00:31]}  Nf6 {[%clk 0:01:49]} 30. Qg1+ {[%clk 0:00:27]}  Qg7 {[%clk 0:01:48]} 31. Qh1 {[%clk 0:00:22]}  Ng4 {[%clk 0:01:31]} 32. Kb2 {[%clk 0:00:20]}  Ra8 {[%clk 0:01:30]} 33. Qf3 {[%clk 0:00:19]}  Kh8 {[%clk 0:01:29]} 34. a4 {[%clk 0:00:19]}  Nf6 {[%clk 0:01:24]} 35. Rd1 {[%clk 0:00:19]}  Qg6 {[%clk 0:01:22]} 36. Re1 {[%clk 0:00:19]}  h5 {[%clk 0:01:14]} 37. Bd3 {[%clk 0:00:19]}  Ng4 {[%clk 0:01:14]} 38. Rg1 {[%clk 0:00:19]}  Qf6 {[%clk 0:01:12]} 39. Rh1 {[%clk 0:00:19]}  Qd8 {[%clk 0:01:08]} 40. Bc4 {[%clk 0:00:16]}  Qb8 {[%clk 0:01:08]} 41. Rg1 {[%clk 0:00:15]}  Qc8 {[%clk 0:01:02]} 42. Kc2 {[%clk 0:00:14]}  Qd7 {[%clk 0:00:59]} 43. Qe2 {[%clk 0:00:11]}  Rf8 {[%clk 0:00:56]} 44. Qf3 {[%clk 0:00:11]}  Qe7 {[%clk 0:00:56]} 45. a5 {[%clk 0:00:11]}  Ra8 {[%clk 0:00:51]} 46. a6 {[%clk 0:00:11]}  Kh7 {[%clk 0:00:38]} 47. Rxg4 {[%clk 0:00:10]}  hxg4 {[%clk 0:00:34]} 48. Qxg4 {[%clk 0:00:11]}  Qg7 {[%clk 0:00:32]} 49. Qh5+ {[%clk 0:00:11]}  Kg8 {[%clk 0:00:31]} 50. Bb5 {[%clk 0:00:09]}  Qg2 {[%clk 0:00:27]} 51. Qe2 {[%clk 0:00:07]}  Ra7 {[%clk 0:00:19]} 52. Kb2 {[%clk 0:00:05]}  Kf7 {[%clk 0:00:19]} 53. Bd3 {[%clk 0:00:04]}  Kf6 {[%clk 0:00:18]} 54. Ka3 {[%clk 0:00:04]}  Qg1 {[%clk 0:00:17]} 55. Qb2 {[%clk 0:00:04]}  Qe1 {[%clk 0:00:15]} 56. Qc2 {[%clk 0:00:03]}  Qb4+ {[%clk 0:00:13]} 57. Kb2 {[%clk 0:00:04]}  Ra8 {[%clk 0:00:13]} 58. Qe2 {[%clk 0:00:04]}  Qd4+ {[%clk 0:00:10]} 59. Kc2 {[%clk 0:00:04]}  Rg8 {[%clk 0:00:05]} 60. Bc4 {[%clk 0:00:03]}  Qa1 {[%clk 0:00:05]} 61. Qh5 {[%clk 0:00:03]}  Qa2+ {[%clk 0:00:06]} 62. Kc3 {[%clk 0:00:03]}  Qa1+ {[%clk 0:00:06]} 63. Kd2 {[%clk 0:00:04]}  Qb2+ {[%clk 0:00:06]} 64. Ke1 {[%clk 0:00:04]}  Qc1+ {[%clk 0:00:06]} 65. Qd1 {[%clk 0:00:04]}  Qc3+ {[%clk 0:00:05]} 66. Ke2 {[%clk 0:00:04]}  Qb2+ {[%clk 0:00:05]} 67. Kf1 {[%clk 0:00:05]}  Qc3 {[%clk 0:00:04]} 68. h5 {[%clk 0:00:04]}  Qh3+ {[%clk 0:00:04]} 69. Ke2 {[%clk 0:00:04]}  f3+ {[%clk 0:00:04]} 70. Kd3 {[%clk 0:00:04]}  Qxh5 {[%clk 0:00:01]} 71. Qd2 {[%clk 0:00:05]}  Qh2 {[%clk 0:00:01]} 72. Qe3 {[%clk 0:00:05]}  Rg2 {[%clk 0:00:01]} 73. Qxf3+ {[%clk 0:00:05]}  Ke7 {[%clk 0:00:02]} 74. Qf5 {[%clk 0:00:05]}  Rxf2 {[%clk 0:00:03]} 75. Qe6+ {[%clk 0:00:06]}  Kf8 {[%clk 0:00:03]} 76. Qc8+ {[%clk 0:00:03]}  Kg7 {[%clk 0:00:04]} 77. Qxc7+ {[%clk 0:00:04]}  Kg6 {[%clk 0:00:04]} 78. Qxd6+ {[%clk 0:00:05]}  Kh7 {[%clk 0:00:04]} 79. Qd7+ {[%clk 0:00:05]}  Kg6 {[%clk 0:00:05]} 80. Qe8+ {[%clk 0:00:05]}  Kg5 {[%clk 0:00:05]} 81. Qg8+ {[%clk 0:00:05]}  Kf4 {[%clk 0:00:06]} 82. Qf7+ {[%clk 0:00:06]}  Kg3 {[%clk 0:00:06]} 83. Qg6+ {[%clk 0:00:06]}  Kf3 {[%clk 0:00:07]} 84. Qf6+ {[%clk 0:00:05]}  Kg4 {[%clk 0:00:07]} 85. Qg6+ {[%clk 0:00:06]}  Kf4 {[%clk 0:00:07]} 86. Qh6+ {[%clk 0:00:05]}  Kf3 {[%clk 0:00:08]} 87. Qxh2 {[%clk 0:00:06]}  Rxh2 {[%clk 0:00:08]} 88. d6 {[%clk 0:00:06]}  Rh7 {[%clk 0:00:08]} 89. Bd5 {[%clk 0:00:06]}  Kf2 {[%clk 0:00:08]} 90. Bb7 {[%clk 0:00:06]}  Rd7 {[%clk 0:00:08]} 91. Kc4 {[%clk 0:00:07]}  Rxd6 {[%clk 0:00:08]} 92. Kxc5 {[%clk 0:00:07]}  Rd4 {[%clk 0:00:09]} 93. a7 {[%clk 0:00:07]} 1-0


[Site "https://www.chess.com"]

[Event "Titled Tuesday Blitz November 15 Early 2022"]
[White "Dudzinski, Pawel"]
[Black "Gerbelli Neto, Eduardo"]
[WhiteFideId "1117890"]
[BlackFideId "2103281"]
[WhiteElo "2086"]
[BlackElo "2178"]
[Result "1-0"]
[Round "06"]
[TimeControl "180+1"]
[Date "2022.11.16"]
[WhiteClock "0:00:09"]
[BlackClock "0:00:21"]

1. e4 {[%clk 0:02:57]}  e5 {[%clk 0:02:59]} 2. Nc3 {[%clk 0:02:55]}  Nf6 {[%clk 0:02:59]} 3. g3 {[%clk 0:02:55]}  d5 {[%clk 0:02:54]} 4. exd5 {[%clk 0:02:56]}  Nxd5 {[%clk 0:02:55]} 5. Bg2 {[%clk 0:02:57]}  Be6 {[%clk 0:02:55]} 6. Nf3 {[%clk 0:02:56]}  Nc6 {[%clk 0:02:55]} 7. O-O {[%clk 0:02:55]}  Nxc3 {[%clk 0:02:53]} 8. bxc3 {[%clk 0:02:55]}  Be7 {[%clk 0:02:48]} 9. Re1 {[%clk 0:02:55]}  Bf6 {[%clk 0:02:49]} 10. d4 {[%clk 0:02:56]}  exd4 {[%clk 0:02:47]} 11. cxd4 {[%clk 0:02:56]}  O-O {[%clk 0:02:44]} 12. c3 {[%clk 0:02:49]}  Re8 {[%clk 0:02:23]} 13. Bf4 {[%clk 0:02:49]}  Ne7 {[%clk 0:02:18]} 14. Ne5 {[%clk 0:02:40]}  Nd5 {[%clk 0:02:16]} 15. Bd2 {[%clk 0:02:28]}  c6 {[%clk 0:02:10]} 16. Rb1 {[%clk 0:02:23]}  Qc7 {[%clk 0:02:00]} 17. Qc2 {[%clk 0:02:13]}  g6 {[%clk 0:01:45]} 18. c4 {[%clk 0:02:07]}  Nb6 {[%clk 0:01:39]} 19. Ba5 {[%clk 0:02:07]}  Bf5 {[%clk 0:01:37]} 20. Be4 {[%clk 0:02:03]}  Bxe5 {[%clk 0:01:30]} 21. dxe5 {[%clk 0:01:40]}  Bxe4 {[%clk 0:01:18]} 22. Rxe4 {[%clk 0:01:35]}  c5 {[%clk 0:01:18]} 23. Bxb6 {[%clk 0:01:25]}  axb6 {[%clk 0:01:17]} 24. Qe2 {[%clk 0:01:25]}  Qc6 {[%clk 0:01:04]} 25. Rb2 {[%clk 0:01:23]}  Ra3 {[%clk 0:01:01]} 26. h4 {[%clk 0:01:22]}  h5 {[%clk 0:00:59]} 27. Kh2 {[%clk 0:01:22]}  Kg7 {[%clk 0:00:48]} 28. Rd2 {[%clk 0:01:22]}  Re6 {[%clk 0:00:48]} 29. f4 {[%clk 0:01:19]}  Rc3 {[%clk 0:00:30]} 30. Re3 {[%clk 0:01:18]}  Rc1 {[%clk 0:00:26]} 31. Qg2 {[%clk 0:01:17]}  Qxg2+ {[%clk 0:00:22]} 32. Kxg2 {[%clk 0:01:17]}  Rxc4 {[%clk 0:00:23]} 33. Rd7 {[%clk 0:01:17]}  Ra4 {[%clk 0:00:22]} 34. Re2 {[%clk 0:01:16]}  c4 {[%clk 0:00:23]} 35. Rxb7 {[%clk 0:01:14]}  Rc6 {[%clk 0:00:23]} 36. e6 {[%clk 0:01:09]}  Kf8 {[%clk 0:00:23]} 37. exf7 {[%clk 0:01:04]}  Rc8 {[%clk 0:00:20]} 38. Rxb6 {[%clk 0:00:28]}  c3 {[%clk 0:00:19]} 39. Rc2 {[%clk 0:00:21]}  Kxf7 {[%clk 0:00:19]} 40. Rb3 {[%clk 0:00:19]}  Rac4 {[%clk 0:00:15]} 41. Kf3 {[%clk 0:00:19]}  Kf6 {[%clk 0:00:15]} 42. Rb6+ {[%clk 0:00:16]}  R8c6 {[%clk 0:00:15]} 43. Rxc6+ {[%clk 0:00:16]}  Rxc6 {[%clk 0:00:16]} 44. Ke4 {[%clk 0:00:12]}  Ra6 {[%clk 0:00:16]} 45. Kd3 {[%clk 0:00:12]}  Ra3 {[%clk 0:00:16]} 46. Kc4 {[%clk 0:00:12]}  Kf5 {[%clk 0:00:16]} 47. Kb4 {[%clk 0:00:12]}  Ra8 {[%clk 0:00:17]} 48. Kxc3 {[%clk 0:00:12]}  Kg4 {[%clk 0:00:17]} 49. Kb4 {[%clk 0:00:10]}  Kxg3 {[%clk 0:00:17]} 50. a4 {[%clk 0:00:10]}  Kxh4 {[%clk 0:00:17]} 51. Rg2 {[%clk 0:00:10]}  Rf8 {[%clk 0:00:15]} 52. Rxg6 {[%clk 0:00:08]}  Rxf4+ {[%clk 0:00:16]} 53. Kb5 {[%clk 0:00:08]}  Rxa4 {[%clk 0:00:15]} 54. Kxa4 {[%clk 0:00:08]}  Kh3 {[%clk 0:00:16]} 55. Kb3 {[%clk 0:00:09]}  h4 {[%clk 0:00:17]} 56. Kc2 {[%clk 0:00:09]}  Kh2 {[%clk 0:00:18]} 57. Kd2 {[%clk 0:00:09]}  h3 {[%clk 0:00:19]} 58. Ke2 {[%clk 0:00:09]}  Kh1 {[%clk 0:00:20]} 59. Kf2 {[%clk 0:00:09]}  h2 {[%clk 0:00:21]} 60. Kg3 {[%clk 0:00:09]}  Kg1 {[%clk 0:00:21]} 61. Ra6 {[%clk 0:00:09]} 1-0


[Site "https://www.chess.com"]